[Event "Titled Tuesday Blitz October 11 Late 2022"]
[White "Bogaudinov, Rushan"]
[Black "Reshetnikov, Alexey"]
[WhiteFideId "4129288"]
[BlackFideId "4162080"]
[WhiteElo "2433"]
[BlackElo "2792"]
[Result "1-0"]
[Round "01"]
[TimeControl "180+1"]
[Date "2022.10.12"]
[WhiteClock "0:00:17"]
[BlackClock "0:00:01"]

1. d4 {[%clk 0:03:00]}  Nf6 {[%clk 0:02:58]} 2. Nf3 {[%clk 0:03:00]}  d5 {[%clk 0:02:58]} 3. e3 {[%clk 0:03:00]}  c6 {[%clk 0:02:53]} 4. Be2 {[%clk 0:02:59]}  Bg4 {[%clk 0:02:53]} 5. O-O {[%clk 0:02:58]}  e6 {[%clk 0:02:54]} 6. c4 {[%clk 0:02:58]}  Nbd7 {[%clk 0:02:53]} 7. Nc3 {[%clk 0:02:52]}  Bd6 {[%clk 0:02:53]} 8. h3 {[%clk 0:02:49]}  Bh5 {[%clk 0:02:53]} 9. c5 {[%clk 0:02:46]}  Bc7 {[%clk 0:02:53]} 10. b4 {[%clk 0:02:45]}  a6 {[%clk 0:02:53]} 11. Bb2 {[%clk 0:02:44]}  O-O {[%clk 0:02:52]} 12. a4 {[%clk 0:02:40]}  e5 {[%clk 0:02:22]} 13. Nxe5 {[%clk 0:02:34]}  Bxe2 {[%clk 0:02:19]} 14. Nxe2 {[%clk 0:02:32]}  Nxe5 {[%clk 0:02:11]} 15. dxe5 {[%clk 0:02:33]}  Nd7 {[%clk 0:02:11]} 16. f4 {[%clk 0:02:21]}  a5 {[%clk 0:02:10]} 17. b5 {[%clk 0:02:16]}  cxb5 {[%clk 0:01:52]} 18. axb5 {[%clk 0:02:15]}  Nxc5 {[%clk 0:01:53]} 19. Ba3 {[%clk 0:02:10]}  Bb6 {[%clk 0:01:51]} 20. Rc1 {[%clk 0:02:00]}  Rc8 {[%clk 0:01:50]} 21. Nd4 {[%clk 0:01:57]}  Re8 {[%clk 0:01:44]} 22. Qg4 {[%clk 0:01:37]}  Ne4 {[%clk 0:01:27]} 23. Nf5 {[%clk 0:01:25]}  g6 {[%clk 0:01:27]} 24. Nd4 {[%clk 0:01:17]}  Rc4 {[%clk 0:01:07]} 25. f5 {[%clk 0:00:54]}  Rxd4 {[%clk 0:00:41]} 26. fxg6 {[%clk 0:00:45]}  hxg6 {[%clk 0:00:39]} 27. exd4 {[%clk 0:00:45]}  Bxd4+ {[%clk 0:00:39]} 28. Kh1 {[%clk 0:00:45]}  Nf2+ {[%clk 0:00:18]} 29. Rxf2 {[%clk 0:00:45]}  Bxf2 {[%clk 0:00:18]} 30. Bd6 {[%clk 0:00:43]}  d4 {[%clk 0:00:15]} 31. Qf3 {[%clk 0:00:39]}  Be3 {[%clk 0:00:15]} 32. Rc7 {[%clk 0:00:39]}  Rf8 {[%clk 0:00:14]} 33. b6 {[%clk 0:00:29]}  Qe8 {[%clk 0:00:10]} 34. Bxf8 {[%clk 0:00:26]}  Kxf8 {[%clk 0:00:10]} 35. Qd5 {[%clk 0:00:25]}  Bf4 {[%clk 0:00:05]} 36. Rd7 {[%clk 0:00:22]}  Bg5 {[%clk 0:00:01]} 37. Qxd4 {[%clk 0:00:16]}  Qe6 {[%clk 0:00:02]} 38. Qd6+ {[%clk 0:00:16]}  Qxd6 {[%clk 0:00:01]} 39. exd6 {[%clk 0:00:17]}  Ke8 {[%clk 0:00:01]} 40. Rxb7 {[%clk 0:00:17]} 1-0


[Site "https://www.chess.com"]

[Event "Titled Tuesday Blitz October 11 Late 2022"]
[White "Bortnyk, Olexandr"]
[Black "Hajiyev, Kanan"]
[WhiteFideId "14120828"]
[BlackFideId "13404148"]
[WhiteElo "2723"]
[BlackElo "2118"]
[Result "1-0"]
[Round "01"]
[TimeControl "180+1"]
[Date "2022.10.11"]
[WhiteClock "0:01:33"]
[BlackClock "0:00:09"]

1. d4 {[%clk 0:02:59]}  d5 {[%clk 0:02:16]} 2. Nc3 {[%clk 0:03:00]}  c6 {[%clk 0:02:16]} 3. Bf4 {[%clk 0:03:01]}  a6 {[%clk 0:02:16]} 4. e3 {[%clk 0:03:02]}  Qb6 {[%clk 0:02:16]} 5. Nf3 {[%clk 0:03:03]}  Qxb2 {[%clk 0:02:15]} 6. Na4 {[%clk 0:02:56]}  Qa3 {[%clk 0:02:12]} 7. c3 {[%clk 0:02:44]}  Nd7 {[%clk 0:01:47]} 8. Qb3 {[%clk 0:02:13]}  e6 {[%clk 0:01:31]} 9. Ne5 {[%clk 0:02:08]}  Qxb3 {[%clk 0:01:25]} 10. axb3 {[%clk 0:02:08]}  Ngf6 {[%clk 0:01:17]} 11. Bd3 {[%clk 0:02:07]}  Nxe5 {[%clk 0:01:13]} 12. Bxe5 {[%clk 0:02:04]}  Nd7 {[%clk 0:01:14]} 13. b4 {[%clk 0:01:53]}  Nxe5 {[%clk 0:00:55]} 14. dxe5 {[%clk 0:01:54]}  Bd7 {[%clk 0:00:51]} 15. f4 {[%clk 0:01:53]}  Be7 {[%clk 0:00:47]} 16. Kd2 {[%clk 0:01:53]}  O-O {[%clk 0:00:45]} 17. Nc5 {[%clk 0:01:53]}  Bxc5 {[%clk 0:00:34]} 18. bxc5 {[%clk 0:01:52]}  Rae8 {[%clk 0:00:33]} 19. Rab1 {[%clk 0:01:49]}  Bc8 {[%clk 0:00:33]} 20. g4 {[%clk 0:01:41]}  f6 {[%clk 0:00:32]} 21. Rhf1 {[%clk 0:01:38]}  fxe5 {[%clk 0:00:26]} 22. fxe5 {[%clk 0:01:39]}  h6 {[%clk 0:00:22]} 23. Bg6 {[%clk 0:01:37]}  Rd8 {[%clk 0:00:17]} 24. Kc2 {[%clk 0:01:32]}  Rxf1 {[%clk 0:00:07]} 25. Rxf1 {[%clk 0:01:33]}  Bd7 {[%clk 0:00:04]} 26. Rb1 {[%clk 0:01:34]}  Bc8 {[%clk 0:00:04]} 27. Rf1 {[%clk 0:01:28]}  Bd7 {[%clk 0:00:04]} 28. Kb3 {[%clk 0:01:28]}  Be8 {[%clk 0:00:02]} 29. Bd3 {[%clk 0:01:29]}  Rd7 {[%clk 0:00:02]} 30. Ka4 {[%clk 0:01:29]}  Rf7 {[%clk 0:00:02]} 31. Rxf7 {[%clk 0:01:29]}  Kxf7 {[%clk 0:00:02]} 32. Ka5 {[%clk 0:01:30]}  Bd7 {[%clk 0:00:02]} 33. Kb6 {[%clk 0:01:30]}  Bc8 {[%clk 0:00:02]} 34. Kc7 {[%clk 0:01:31]}  a5 {[%clk 0:00:01]} 35. Kxc8 {[%clk 0:01:31]}  a4 {[%clk 0:00:02]} 36. Kxb7 {[%clk 0:01:31]}  a3 {[%clk 0:00:03]} 37. Bb1 {[%clk 0:01:31]}  g5 {[%clk 0:00:03]} 38. Kxc6 {[%clk 0:01:31]}  h5 {[%clk 0:00:04]} 39. gxh5 {[%clk 0:01:32]}  Kg7 {[%clk 0:00:04]} 40. Kb7 {[%clk 0:01:32]}  Kh6 {[%clk 0:00:05]} 41. c6 {[%clk 0:01:32]}  Kxh5 {[%clk 0:00:06]} 42. c7 {[%clk 0:01:33]}  g4 {[%clk 0:00:07]} 43. c8=Q {[%clk 0:01:33]}  g3 {[%clk 0:00:08]} 44. hxg3 {[%clk 0:01:32]}  Kg4 {[%clk 0:00:08]} 45. Qxe6+ {[%clk 0:01:33]}  Kxg3 {[%clk 0:00:09]} 46. Qxd5 {[%clk 0:01:33]} 1-0


[Site "https://www.chess.com"]

[Event "Titled Tuesday Blitz October 11 Late 2022"]
[White "Cabarkapa, Novak"]
[Black "Meduri, Aakaash"]
[WhiteFideId "943746"]
[BlackFideId "2032252"]
[WhiteElo "2806"]
[BlackElo "2442"]
[Result "1-0"]
[Round "01"]
[TimeControl "180+1"]
[Date "2022.10.12"]
[WhiteClock "0:00:28"]
[BlackClock "0:00:13"]

1. e4 {[%clk 0:03:00]}  c5 {[%clk 0:02:57]} 2. a3 {[%clk 0:03:01]}  d5 {[%clk 0:02:56]} 3. exd5 {[%clk 0:03:01]}  Qxd5 {[%clk 0:02:57]} 4. Nc3 {[%clk 0:03:01]}  Qe6+ {[%clk 0:02:51]} 5. Be2 {[%clk 0:02:58]}  Nc6 {[%clk 0:02:48]} 6. Nf3 {[%clk 0:02:59]}  a6 {[%clk 0:02:47]} 7. O-O {[%clk 0:02:59]}  g6 {[%clk 0:02:47]} 8. d4 {[%clk 0:02:56]}  cxd4 {[%clk 0:02:47]} 9. Nxd4 {[%clk 0:02:57]}  Nxd4 {[%clk 0:02:44]} 10. Qxd4 {[%clk 0:02:58]}  Nf6 {[%clk 0:02:44]} 11. Rd1 {[%clk 0:02:39]}  Bd7 {[%clk 0:02:37]} 12. Bc4 {[%clk 0:02:38]}  Qg4 {[%clk 0:02:33]} 13. Qxg4 {[%clk 0:02:03]}  Bxg4 {[%clk 0:02:32]} 14. Re1 {[%clk 0:02:00]}  Rc8 {[%clk 0:02:20]} 15. Nd5 {[%clk 0:01:45]}  Nxd5 {[%clk 0:01:57]} 16. Bxd5 {[%clk 0:01:46]}  Rxc2 {[%clk 0:01:45]} 17. Bxb7 {[%clk 0:01:39]}  Bg7 {[%clk 0:01:39]} 18. Bxa6 {[%clk 0:01:33]}  O-O {[%clk 0:01:38]} 19. Rxe7 {[%clk 0:01:14]}  Rd8 {[%clk 0:01:02]} 20. h3 {[%clk 0:00:57]}  Rd1+ {[%clk 0:00:43]} 21. Kh2 {[%clk 0:00:56]}  Bf8 {[%clk 0:00:39]} 22. Re8 {[%clk 0:00:49]}  Bd7 {[%clk 0:00:38]} 23. Rxf8+ {[%clk 0:00:45]}  Kxf8 {[%clk 0:00:35]} 24. Bh6+ {[%clk 0:00:46]}  Ke7 {[%clk 0:00:32]} 25. Rxd1 {[%clk 0:00:46]}  Rxf2 {[%clk 0:00:29]} 26. Rd2 {[%clk 0:00:33]}  Rf5 {[%clk 0:00:20]} 27. Be3 {[%clk 0:00:33]}  Bc6 {[%clk 0:00:18]} 28. b4 {[%clk 0:00:32]}  Re5 {[%clk 0:00:14]} 29. Bd4 {[%clk 0:00:29]}  Re1 {[%clk 0:00:13]} 30. b5 {[%clk 0:00:28]} 1-0


[Site "https://www.chess.com"]

[Event "Titled Tuesday Blitz October 11 Late 2022"]
[White "Curtis, John"]
[Black "Horobetz, Graham"]
[WhiteFideId "3200256"]
[BlackFideId "2047322"]
[WhiteElo "2203"]
[BlackElo "2560"]
[Result "0-1"]
[Round "01"]
[TimeControl "180+1"]
[Date "2022.10.12"]
[WhiteClock "0:00:54"]
[BlackClock "0:00:09"]

1. e4 {[%clk 0:03:00]}  c5 {[%clk 0:02:59]} 2. Nf3 {[%clk 0:03:00]}  d6 {[%clk 0:02:59]} 3. d4 {[%clk 0:03:00]}  cxd4 {[%clk 0:03:00]} 4. Nxd4 {[%clk 0:03:00]}  Nf6 {[%clk 0:03:00]} 5. Nc3 {[%clk 0:03:00]}  a6 {[%clk 0:03:01]} 6. Bg5 {[%clk 0:03:00]}  e6 {[%clk 0:03:01]} 7. Qf3 {[%clk 0:02:54]}  Nbd7 {[%clk 0:02:48]} 8. O-O-O {[%clk 0:02:52]}  Qc7 {[%clk 0:02:46]} 9. g4 {[%clk 0:02:47]}  b5 {[%clk 0:02:21]} 10. Bxf6 {[%clk 0:02:44]}  Nxf6 {[%clk 0:02:13]} 11. g5 {[%clk 0:02:42]}  Nd7 {[%clk 0:02:11]} 12. a3 {[%clk 0:02:36]}  Bb7 {[%clk 0:02:06]} 13. h4 {[%clk 0:02:25]}  Be7 {[%clk 0:01:59]} 14. Bh3 {[%clk 0:02:17]}  Ne5 {[%clk 0:01:56]} 15. Qg3 {[%clk 0:02:13]}  O-O {[%clk 0:01:18]} 16. f4 {[%clk 0:02:11]}  Nc4 {[%clk 0:01:17]} 17. f5 {[%clk 0:02:10]}  exf5 {[%clk 0:00:55]} 18. Nxf5 {[%clk 0:01:49]}  Rfe8 {[%clk 0:00:55]} 19. h5 {[%clk 0:01:38]}  Bf8 {[%clk 0:00:42]} 20. Rhe1 {[%clk 0:01:36]}  Qc5 {[%clk 0:00:24]} 21. g6 {[%clk 0:01:24]}  fxg6 {[%clk 0:00:20]} 22. hxg6 {[%clk 0:01:24]}  h6 {[%clk 0:00:12]} 23. Nd4 {[%clk 0:01:19]}  Qe5 {[%clk 0:00:10]} 24. Qxe5 {[%clk 0:01:08]}  dxe5 {[%clk 0:00:10]} 25. Nf5 {[%clk 0:01:02]}  Rad8 {[%clk 0:00:08]} 26. Nd5 {[%clk 0:01:01]}  Bxd5 {[%clk 0:00:08]} 27. exd5 {[%clk 0:01:01]}  e4 {[%clk 0:00:08]} 28. Bf1 {[%clk 0:01:01]}  Nd6 {[%clk 0:00:08]} 29. Nxd6 {[%clk 0:00:58]}  Bxd6 {[%clk 0:00:09]} 30. Bh3 {[%clk 0:00:59]}  Re5 {[%clk 0:00:06]} 31. Be6+ {[%clk 0:00:59]}  Kh8 {[%clk 0:00:07]} 32. Bf7 {[%clk 0:00:59]}  e3 {[%clk 0:00:06]} 33. Re2 {[%clk 0:00:59]}  Rg5 {[%clk 0:00:07]} 34. c3 {[%clk 0:00:57]}  Rg3 {[%clk 0:00:05]} 35. Kc2 {[%clk 0:00:57]}  h5 {[%clk 0:00:04]} 36. Kd3 {[%clk 0:00:57]}  Rh3 {[%clk 0:00:04]} 37. Rh1 {[%clk 0:00:58]}  Rxh1 {[%clk 0:00:04]} 38. Rxe3 {[%clk 0:00:57]}  Rd1+ {[%clk 0:00:04]} 39. Kc2 {[%clk 0:00:57]}  Rh1 {[%clk 0:00:04]} 40. Rf3 {[%clk 0:00:56]}  Rh2+ {[%clk 0:00:04]} 41. Kb3 {[%clk 0:00:55]}  Be7 {[%clk 0:00:05]} 42. Be6 {[%clk 0:00:55]}  Bf6 {[%clk 0:00:04]} 43. Rf5 {[%clk 0:00:54]}  Re8 {[%clk 0:00:01]} 44. Bf7 {[%clk 0:00:54]}  Rd8 {[%clk 0:00:02]} 45. a4 {[%clk 0:00:54]}  Rh4 {[%clk 0:00:02]} 46. axb5 {[%clk 0:00:53]}  axb5 {[%clk 0:00:03]} 47. Be6 {[%clk 0:00:53]}  Rf8 {[%clk 0:00:03]} 48. Ka3 {[%clk 0:00:51]}  Rd8 {[%clk 0:00:04]} 49. Kb3 {[%clk 0:00:51]}  Be7 {[%clk 0:00:04]} 50. Rf7 {[%clk 0:00:51]}  Bf6 {[%clk 0:00:04]} 51. Rb7 {[%clk 0:00:50]}  Re4 {[%clk 0:00:04]} 52. Rxb5 {[%clk 0:00:50]}  h4 {[%clk 0:00:05]} 53. Rb4 {[%clk 0:00:50]}  Rxb4+ {[%clk 0:00:05]} 54. Kxb4 {[%clk 0:00:51]}  h3 {[%clk 0:00:05]} 55. c4 {[%clk 0:00:51]}  h2 {[%clk 0:00:05]} 56. d6 {[%clk 0:00:52]}  h1=Q {[%clk 0:00:05]} 57. Bd5 {[%clk 0:00:53]}  Qh3 {[%clk 0:00:05]} 58. b3 {[%clk 0:00:53]}  Qd7 {[%clk 0:00:06]} 59. c5 {[%clk 0:00:51]}  Bd4 {[%clk 0:00:06]} 60. Kc4 {[%clk 0:00:52]}  Bxc5 {[%clk 0:00:07]} 61. Kxc5 {[%clk 0:00:52]}  Qxd6+ {[%clk 0:00:08]} 62. Kc4 {[%clk 0:00:53]}  Qxd5+ {[%clk 0:00:08]} 63. Kb4 {[%clk 0:00:54]}  Rb8+ {[%clk 0:00:08]} 64. Ka4 {[%clk 0:00:55]}  Qxb3+ {[%clk 0:00:08]} 65. Ka5 {[%clk 0:00:54]}  Qb5# {[%clk 0:00:09]} 0-1


[Site "https://www.chess.com"]

[Event "Titled Tuesday Blitz October 11 Late 2022"]
[White "Dilmukhametov, Artur"]
[Black "Yi, Richard"]
[WhiteFideId "24179922"]
[BlackFideId "2079518"]
[WhiteElo "2197"]
[BlackElo "2147"]
[Result "0-1"]
[Round "01"]
[TimeControl "180+1"]
[Date "2022.10.12"]
[WhiteClock "0:00:05"]
[BlackClock "0:00:12"]

1. e4 {[%clk 0:02:50]}  e5 {[%clk 0:02:55]} 2. Nf3 {[%clk 0:02:37]}  Nc6 {[%clk 0:02:54]} 3. Bb5 {[%clk 0:02:36]}  Nf6 {[%clk 0:02:41]} 4. O-O {[%clk 0:02:35]}  Nxe4 {[%clk 0:02:41]} 5. d4 {[%clk 0:02:34]}  Nd6 {[%clk 0:02:42]} 6. dxe5 {[%clk 0:02:34]}  Nxb5 {[%clk 0:02:42]} 7. a4 {[%clk 0:02:35]}  Nbd4 {[%clk 0:02:42]} 8. Nxd4 {[%clk 0:02:35]}  Nxd4 {[%clk 0:02:43]} 9. Qxd4 {[%clk 0:02:36]}  d5 {[%clk 0:02:43]} 10. exd6 {[%clk 0:02:37]}  Qxd6 {[%clk 0:02:42]} 11. Qe4+ {[%clk 0:02:38]}  Qe6 {[%clk 0:02:42]} 12. Qd4 {[%clk 0:02:38]}  Qd6 {[%clk 0:02:42]} 13. Qe3+ {[%clk 0:02:39]}  Be6 {[%clk 0:02:39]} 14. Nc3 {[%clk 0:02:38]}  c6 {[%clk 0:02:26]} 15. Ne4 {[%clk 0:02:32]}  Qd5 {[%clk 0:02:20]} 16. b3 {[%clk 0:02:07]}  Be7 {[%clk 0:02:05]} 17. Bb2 {[%clk 0:02:07]}  O-O {[%clk 0:02:00]} 18. Rad1 {[%clk 0:02:06]}  Qh5 {[%clk 0:01:49]} 19. Qg3 {[%clk 0:01:58]}  Qg6 {[%clk 0:01:46]} 20. Rfe1 {[%clk 0:01:53]}  b5 {[%clk 0:01:36]} 21. a5 {[%clk 0:01:51]}  Qxg3 {[%clk 0:01:31]} 22. hxg3 {[%clk 0:01:51]}  Rfd8 {[%clk 0:01:32]} 23. Bd4 {[%clk 0:01:39]}  Bb4 {[%clk 0:01:26]} 24. Bc3 {[%clk 0:01:40]}  Be7 {[%clk 0:01:12]} 25. Bd4 {[%clk 0:01:39]}  Bf5 {[%clk 0:01:01]} 26. c3 {[%clk 0:01:31]}  Kf8 {[%clk 0:00:50]} 27. b4 {[%clk 0:01:22]}  Rdc8 {[%clk 0:00:41]} 28. Bc5 {[%clk 0:01:15]}  Rc7 {[%clk 0:00:38]} 29. Nd6 {[%clk 0:01:05]}  Be6 {[%clk 0:00:36]} 30. f4 {[%clk 0:01:00]}  Rd8 {[%clk 0:00:34]} 31. f5 {[%clk 0:00:55]}  Bb3 {[%clk 0:00:33]} 32. Rd3 {[%clk 0:00:48]}  Rcd7 {[%clk 0:00:29]} 33. f6 {[%clk 0:00:36]}  gxf6 {[%clk 0:00:29]} 34. c4 {[%clk 0:00:12]}  Bxc4 {[%clk 0:00:27]} 35. Nxc4 {[%clk 0:00:12]}  Bxc5+ {[%clk 0:00:26]} 36. bxc5 {[%clk 0:00:13]}  Rxd3 {[%clk 0:00:25]} 37. Nd6 {[%clk 0:00:14]}  Ra3 {[%clk 0:00:18]} 38. Nb7 {[%clk 0:00:13]}  Rd7 {[%clk 0:00:18]} 39. Nd6 {[%clk 0:00:13]}  Rxa5 {[%clk 0:00:17]} 40. Re8+ {[%clk 0:00:13]}  Kg7 {[%clk 0:00:17]} 41. Nf5+ {[%clk 0:00:14]}  Kg6 {[%clk 0:00:18]} 42. g4 {[%clk 0:00:15]}  Kg5 {[%clk 0:00:13]} 43. Ne3 {[%clk 0:00:15]}  Kf4 {[%clk 0:00:12]} 44. Kh2 {[%clk 0:00:14]}  Ra3 {[%clk 0:00:12]} 45. Nf5 {[%clk 0:00:12]}  Kxg4 {[%clk 0:00:11]} 46. Nd6 {[%clk 0:00:12]}  Rc3 {[%clk 0:00:08]} 47. Ne4 {[%clk 0:00:11]}  Rdd3 {[%clk 0:00:05]} 48. Nxf6+ {[%clk 0:00:08]}  Kf5 {[%clk 0:00:04]} 49. Nxh7 {[%clk 0:00:09]}  Rxc5 {[%clk 0:00:04]} 50. Re7 {[%clk 0:00:09]}  Kg6 {[%clk 0:00:03]} 51. Nf8+ {[%clk 0:00:10]}  Kf6 {[%clk 0:00:02]} 52. Rxa7 {[%clk 0:00:09]}  Rh5+ {[%clk 0:00:02]} 53. Kg1 {[%clk 0:00:09]}  Rd1+ {[%clk 0:00:03]} 54. Kf2 {[%clk 0:00:10]}  Rf5+ {[%clk 0:00:03]} 55. Ke2 {[%clk 0:00:10]}  Rff1 {[%clk 0:00:04]} 56. Nd7+ {[%clk 0:00:10]}  Kg7 {[%clk 0:00:04]} 57. Nc5 {[%clk 0:00:09]}  Rde1+ {[%clk 0:00:04]} 58. Kd2 {[%clk 0:00:09]}  Re5 {[%clk 0:00:05]} 59. Nd3 {[%clk 0:00:09]}  Rd5 {[%clk 0:00:06]} 60. Ke2 {[%clk 0:00:09]}  Rf6 {[%clk 0:00:05]} 61. Nb4 {[%clk 0:00:09]}  Re6+ {[%clk 0:00:05]} 62. Kf3 {[%clk 0:00:09]}  Rf5+ {[%clk 0:00:06]} 63. Kg4 {[%clk 0:00:10]}  Rc5 {[%clk 0:00:06]} 64. Kh3 {[%clk 0:00:02]}  Rg6 {[%clk 0:00:07]} 65. Kh2 {[%clk 0:00:02]}  Rh6+ {[%clk 0:00:07]} 66. Kg3 {[%clk 0:00:02]}  Rc4 {[%clk 0:00:08]} 67. Na2 {[%clk 0:00:02]}  Rg6+ {[%clk 0:00:09]} 68. Kf3 {[%clk 0:00:03]}  Rc2 {[%clk 0:00:09]} 69. Nb4 {[%clk 0:00:03]}  Rf6+ {[%clk 0:00:10]} 70. Ke3 {[%clk 0:00:03]}  Rc4 {[%clk 0:00:11]} 71. Nd3 {[%clk 0:00:04]}  Re6+ {[%clk 0:00:11]} 72. Kd2 {[%clk 0:00:04]}  Rd6 {[%clk 0:00:12]} 73. Ke2 {[%clk 0:00:04]}  Rc2+ {[%clk 0:00:12]} 74. Kd1 {[%clk 0:00:04]}  Rc3 {[%clk 0:00:11]} 75. Kd2 {[%clk 0:00:04]}  Rcxd3+ {[%clk 0:00:12]} 76. Ke2 {[%clk 0:00:05]}  Rd2+ {[%clk 0:00:12]} 0-1


[Site "https://www.chess.com"]

[Event "Titled Tuesday Blitz October 11 Late 2022"]
[White "Duda, Jan-Krzysztof"]
[Black "Msellek, Ilyass"]
[WhiteFideId "1170546"]
[BlackFideId "675938"]
[WhiteElo "2779"]
[BlackElo "2303"]
[Result "1-0"]
[Round "01"]
[TimeControl "180+1"]
[Date "2022.10.11"]
[WhiteClock "0:01:32"]
[BlackClock "0:00:04"]

1. d4 {[%clk 0:03:00]}  d6 {[%clk 0:02:56]} 2. Nf3 {[%clk 0:02:58]}  Bf5 {[%clk 0:02:56]} 3. g3 {[%clk 0:02:54]}  Nf6 {[%clk 0:02:57]} 4. Bg2 {[%clk 0:02:48]}  g6 {[%clk 0:02:56]} 5. c4 {[%clk 0:02:35]}  Bg7 {[%clk 0:02:55]} 6. O-O {[%clk 0:02:31]}  O-O {[%clk 0:02:54]} 7. Re1 {[%clk 0:02:24]}  c6 {[%clk 0:02:28]} 8. Nh4 {[%clk 0:02:17]}  Be4 {[%clk 0:02:26]} 9. f3 {[%clk 0:02:15]}  Bxb1 {[%clk 0:02:27]} 10. Rxb1 {[%clk 0:02:14]}  e5 {[%clk 0:02:15]} 11. e3 {[%clk 0:02:13]}  a5 {[%clk 0:01:51]} 12. b3 {[%clk 0:02:06]}  Na6 {[%clk 0:01:51]} 13. a3 {[%clk 0:02:05]}  Qc8 {[%clk 0:01:43]} 14. Qc2 {[%clk 0:02:03]}  Re8 {[%clk 0:01:42]} 15. Bb2 {[%clk 0:02:02]}  Qc7 {[%clk 0:01:31]} 16. Rbd1 {[%clk 0:01:59]}  Rad8 {[%clk 0:01:19]} 17. Bf1 {[%clk 0:01:57]}  e4 {[%clk 0:01:17]} 18. f4 {[%clk 0:01:56]}  c5 {[%clk 0:01:13]} 19. d5 {[%clk 0:01:51]}  Qc8 {[%clk 0:01:10]} 20. Bc3 {[%clk 0:01:47]}  b6 {[%clk 0:01:08]} 21. Qb2 {[%clk 0:01:48]}  Nh5 {[%clk 0:01:09]} 22. Be2 {[%clk 0:01:46]}  Bxc3 {[%clk 0:01:05]} 23. Qxc3 {[%clk 0:01:47]}  Ng7 {[%clk 0:01:05]} 24. g4 {[%clk 0:01:46]}  Rd7 {[%clk 0:00:21]} 25. Kh1 {[%clk 0:01:42]}  Qd8 {[%clk 0:00:20]} 26. Ng2 {[%clk 0:01:42]}  f6 {[%clk 0:00:19]} 27. Rg1 {[%clk 0:01:42]}  Qe7 {[%clk 0:00:19]} 28. Ne1 {[%clk 0:01:40]}  g5 {[%clk 0:00:17]} 29. Nc2 {[%clk 0:01:39]}  h6 {[%clk 0:00:14]} 30. Rdf1 {[%clk 0:01:38]}  Rf8 {[%clk 0:00:13]} 31. Rg2 {[%clk 0:01:33]}  Rdd8 {[%clk 0:00:13]} 32. Rgf2 {[%clk 0:01:33]}  Nc7 {[%clk 0:00:04]} 33. b4 {[%clk 0:01:32]}  cxb4 {[%clk 0:00:02]} 34. axb4 {[%clk 0:01:33]}  axb4 {[%clk 0:00:02]} 35. Nxb4 {[%clk 0:01:33]}  Rde8 {[%clk 0:00:03]} 36. Nc6 {[%clk 0:01:33]}  Qd7 {[%clk 0:00:03]} 37. fxg5 {[%clk 0:01:31]}  fxg5 {[%clk 0:00:02]} 38. Rxf8+ {[%clk 0:01:32]}  Rxf8 {[%clk 0:00:03]} 39. Rxf8+ {[%clk 0:01:31]}  Kxf8 {[%clk 0:00:04]} 40. Qf6+ {[%clk 0:01:32]}  Kg8 {[%clk 0:00:04]} 41. Ne7+ {[%clk 0:01:31]}  Kh7 {[%clk 0:00:03]} 42. Qg6+ {[%clk 0:01:32]}  Kh8 {[%clk 0:00:04]} 43. Qxh6# {[%clk 0:01:32]} 1-0


[Site "https://www.chess.com"]

[Event "Titled Tuesday Blitz October 11 Late 2022"]
[White "Ernst, Sipke"]
[Black "Ovezdurdyyeva, Jemal"]
[WhiteFideId "1004689"]
[BlackFideId "14001888"]
[WhiteElo "2438"]
[BlackElo "1961"]
[Result "1-0"]
[Round "01"]
[TimeControl "180+1"]
[Date "2022.10.12"]
[WhiteClock "0:00:15"]
[BlackClock "0:00:04"]

1. d4 {[%clk 0:03:00]}  Nf6 {[%clk 0:02:59]} 2. c4 {[%clk 0:02:59]}  e6 {[%clk 0:02:58]} 3. g3 {[%clk 0:02:58]}  d5 {[%clk 0:02:56]} 4. Nf3 {[%clk 0:02:58]}  Be7 {[%clk 0:02:55]} 5. Bg2 {[%clk 0:02:59]}  c6 {[%clk 0:02:55]} 6. O-O {[%clk 0:02:56]}  Ne4 {[%clk 0:02:55]} 7. Nc3 {[%clk 0:02:55]}  f5 {[%clk 0:02:55]} 8. Nxe4 {[%clk 0:02:44]}  fxe4 {[%clk 0:02:42]} 9. Ne5 {[%clk 0:02:45]}  Nd7 {[%clk 0:02:39]} 10. Nxd7 {[%clk 0:02:45]}  Bxd7 {[%clk 0:02:39]} 11. f3 {[%clk 0:02:45]}  exf3 {[%clk 0:02:39]} 12. Bxf3 {[%clk 0:02:39]}  O-O {[%clk 0:02:33]} 13. Qd3 {[%clk 0:02:21]}  Be8 {[%clk 0:02:21]} 14. Bf4 {[%clk 0:02:20]}  Bg6 {[%clk 0:02:21]} 15. Qe3 {[%clk 0:02:16]}  Qd7 {[%clk 0:02:15]} 16. c5 {[%clk 0:02:13]}  Bf6 {[%clk 0:02:12]} 17. Be5 {[%clk 0:02:10]}  Bxe5 {[%clk 0:02:10]} 18. Qxe5 {[%clk 0:02:10]}  Rf5 {[%clk 0:02:08]} 19. Qe3 {[%clk 0:02:09]}  Raf8 {[%clk 0:02:06]} 20. Bg4 {[%clk 0:02:05]}  Rxf1+ {[%clk 0:02:04]} 21. Rxf1 {[%clk 0:02:06]}  Rxf1+ {[%clk 0:02:04]} 22. Kxf1 {[%clk 0:02:06]}  Be4 {[%clk 0:02:05]} 23. Qf4 {[%clk 0:02:01]}  Qf7 {[%clk 0:01:59]} 24. Ke1 {[%clk 0:01:55]}  Qxf4 {[%clk 0:01:58]} 25. gxf4 {[%clk 0:01:56]}  Kf7 {[%clk 0:01:56]} 26. h4 {[%clk 0:01:54]}  g6 {[%clk 0:01:50]} 27. e3 {[%clk 0:01:52]}  Kf6 {[%clk 0:01:48]} 28. Kf2 {[%clk 0:01:49]}  Bf5 {[%clk 0:01:43]} 29. Be2 {[%clk 0:01:49]}  h6 {[%clk 0:01:42]} 30. b4 {[%clk 0:01:47]}  g5 {[%clk 0:01:36]} 31. hxg5+ {[%clk 0:01:41]}  hxg5 {[%clk 0:01:35]} 32. Kg3 {[%clk 0:01:42]}  gxf4+ {[%clk 0:01:30]} 33. Kxf4 {[%clk 0:01:33]}  Bg6 {[%clk 0:01:23]} 34. b5 {[%clk 0:01:30]}  Be8 {[%clk 0:01:00]} 35. b6 {[%clk 0:01:29]}  axb6 {[%clk 0:00:58]} 36. cxb6 {[%clk 0:01:29]}  c5 {[%clk 0:00:57]} 37. dxc5 {[%clk 0:01:07]}  e5+ {[%clk 0:00:56]} 38. Kg3 {[%clk 0:01:06]}  Kf5 {[%clk 0:00:50]} 39. Bf3 {[%clk 0:01:01]}  e4 {[%clk 0:00:46]} 40. Bh5 {[%clk 0:00:53]}  Bc6 {[%clk 0:00:44]} 41. Kf2 {[%clk 0:00:49]}  Ke5 {[%clk 0:00:43]} 42. Ke2 {[%clk 0:00:48]}  d4 {[%clk 0:00:43]} 43. Bf7 {[%clk 0:00:46]}  d3+ {[%clk 0:00:19]} 44. Kd2 {[%clk 0:00:46]}  Ba4 {[%clk 0:00:18]} 45. Kc3 {[%clk 0:00:42]}  Bc6 {[%clk 0:00:18]} 46. Bb3 {[%clk 0:00:40]}  Bb5 {[%clk 0:00:17]} 47. a4 {[%clk 0:00:37]}  Bc6 {[%clk 0:00:18]} 48. a5 {[%clk 0:00:23]}  Bb5 {[%clk 0:00:16]} 49. Bf7 {[%clk 0:00:21]}  Ba6 {[%clk 0:00:16]} 50. Ba2 {[%clk 0:00:17]}  Bb5 {[%clk 0:00:16]} 51. Bb3 {[%clk 0:00:17]}  Ba6 {[%clk 0:00:16]} 52. Ba4 {[%clk 0:00:17]}  Kd5 {[%clk 0:00:16]} 53. c6 {[%clk 0:00:15]}  bxc6 {[%clk 0:00:16]} 54. Bb3+ {[%clk 0:00:15]}  Kc5 {[%clk 0:00:15]} 55. Ba4 {[%clk 0:00:15]}  Kd6 {[%clk 0:00:15]} 56. Kd4 {[%clk 0:00:14]}  c5+ {[%clk 0:00:14]} 57. Kxe4 {[%clk 0:00:14]}  c4 {[%clk 0:00:14]} 58. Kd4 {[%clk 0:00:14]}  Ke6 {[%clk 0:00:10]} 59. e4 {[%clk 0:00:14]}  Kd6 {[%clk 0:00:10]} 60. e5+ {[%clk 0:00:14]}  Ke6 {[%clk 0:00:11]} 61. Bd1 {[%clk 0:00:15]}  d2 {[%clk 0:00:06]} 62. Bg4+ {[%clk 0:00:14]}  Ke7 {[%clk 0:00:06]} 63. Kc3 {[%clk 0:00:14]}  d1=Q {[%clk 0:00:04]} 64. Bxd1 {[%clk 0:00:13]}  Ke6 {[%clk 0:00:05]} 65. Kd4 {[%clk 0:00:14]}  c3 {[%clk 0:00:05]} 66. Bg4+ {[%clk 0:00:14]}  Ke7 {[%clk 0:00:05]} 67. Kxc3 {[%clk 0:00:15]}  Bb7 {[%clk 0:00:04]} 68. Kd4 {[%clk 0:00:15]}  Ba6 {[%clk 0:00:04]} 69. Bf3 {[%clk 0:00:15]}  Ke6 {[%clk 0:00:04]} 70. Bd5+ {[%clk 0:00:15]}  Ke7 {[%clk 0:00:04]} 71. Kc5 {[%clk 0:00:15]} 1-0


[Site "https://www.chess.com"]